[Event "Hungarian Rapid-ch 2022"]
[Site "Ajka"]
[Date "2022.07.16"]
[Round "6.10"]
[White "Kaczur, Florian"]
[Black "Lazarne Vajda, Szidonia"]
[Result "1-0"]
[ECO "A12"]
[WhiteElo "2482"]
[BlackElo "2313"]
[Annotator "ChessBase"]
[PlyCount "63"]
[EventDate "2022.07.15"]
[EventType "swiss"]
[EventCountry "HUN"]
[SourceTitle "playchess.com"]
[Source "ChessBase"]
[SourceQuality "1"]
[TimeControl "900+10"]

1. c4 {[%emt 0:00:12]} c6 {[%emt 0:00:17]} 2. Nf3 {[%emt 0:00:07]} d5 {[%emt 0:00:02]} 3. b3 {[%emt 0:00:04]} e6 {[%emt 0:00:37]} 4. Bb2 {[%emt 0:00:03]} Nf6 {[%emt 0:00:03]} 5. Qc2 {[%emt 0:00:13]} Nbd7 {[%emt 0:00:17]} 6. g3 {[%emt 0:00:18]} Bd6 {[%emt 0:00:22]} 7. d4 {[%emt 0:00:25]} Ne4 {[%emt 0:00:26]} 8. Nbd2 {[%emt 0:00:16]} f5 {[%emt 0:01:09]} 9. Bg2 {[%emt 0:00:32]} O-O {[%emt 0:00:03]} 10. O-O {[%emt 0:00:35]} Ndf6 {[%emt 0:00:50]} 11. c5 {[%emt 0:01:12]} Bc7 {[%emt 0:00:08]} 12. Ne5 {[%emt 0:00:09]} Nxd2 {[%emt 0:00:40]} 13. Qxd2 {[%emt 0:00:04]} Bd7 {[%emt 0:00:22]} 14. b4 {[%emt 0:00:05]} Be8 {[%emt 0:00:16]} 15. f3 {[%emt 0:01:17]} Nd7 {[%emt 0:00:50]} 16. a4 {[%emt 0:02:13]} Nxe5 {[%emt 0:04:32]} 17. dxe5 {[%emt 0:00:02]} a5 {[%emt 0:01:04]} 18. Bd4 {[%emt 0:01:25]} b6 {[%emt 0:01:41]} 19. Rfb1 {[%emt 0:01:46]} axb4 {[%emt 0:00:10]} 20. Qxb4 {[%emt 0:00:06]} bxc5 {[%emt 0:00:03]} 21. Qxc5 {[%emt 0:00:03]} Ra5 {[%emt 0:01:25]} 22. Qb4 {[%emt 0:00:51]} Rf7 {[%emt 0:00:15]} 23. f4 {[%emt 0:00:34]} Qa8 {[%emt 0:01:29]} 24. e3 {[%emt 0:00:13]} c5 {[%emt 0:00:11]} 25. Bxc5 {[%emt 0:00:05]} Rxa4 {[%emt 0:00:04]} 26. Rxa4 {[%emt 0:00:16]} Qxa4 {[%emt 0:00:01]} 27. Qxa4 {[%emt 0:00:06]} Bxa4 {[%emt 0:00:01]} 28. Ra1 {[%emt 0:00:02]} Bc6 {[%emt 0:00:20]} 29. Ra6 {[%emt 0:00:01]} Bb7 {[%emt 0:01:17]} 30. Rxe6 {[%emt 0:00:02]} g6 {[%emt 0:00:20]} 31. Re8+ {[%emt 0:00:05]} Kg7 {[%emt 0:00:04]} 32. e6 {[%emt 0:00:07]} 1-0

[Event "Hungarian Rapid-ch 2022"]
[Site "Ajka"]
[Date "2022.07.16"]
[Round "6.11"]
[White "Antal, Gergely"]
[Black "Bodi, Tibor"]
[Result "1-0"]
[ECO "B10"]
[WhiteElo "2571"]
[BlackElo "2301"]
[Annotator "ChessBase"]
[PlyCount "79"]
[EventDate "2022.07.15"]
[EventType "swiss"]
[EventCountry "HUN"]
[SourceTitle "playchess.com"]
[Source "ChessBase"]
[SourceQuality "1"]
[TimeControl "900+10"]

1. e4 {[%emt 0:00:13]} c6 {[%emt 0:00:14]} 2. Nf3 {[%emt 0:00:11]} d5 {[%emt 0:00:11]} 3. d3 {[%emt 0:00:01]} g6 {[%emt 0:00:09]} 4. e5 {[%emt 0:00:04]} Nh6 {[%emt 0:01:03]} 5. d4 {[%emt 0:00:18]} Nf5 {[%emt 0:00:26]} 6. c3 {[%emt 0:01:11]} Bg7 {[%emt 0:00:11]} 7. Bd3 {[%emt 0:00:50]} f6 {[%emt 0:01:02]} 8. O-O {[%emt 0:00:35]} O-O {[%emt 0:00:21]} 9. Re1 {[%emt 0:00:18]} b6 {[%emt 0:03:29]} 10. h3 {[%emt 0:01:43]} c5 {[%emt 0:01:09]} 11. dxc5 {[%emt 0:01:22]} bxc5 {[%emt 0:00:04]} 12. c4 {[%emt 0:00:17]} Bb7 {[%emt 0:05:29]} 13. cxd5 {[%emt 0:00:28]} Bxd5 {[%emt 0:00:09]} 14. Nc3 {[%emt 0:00:03]} Bc6 {[%emt 0:00:27]} 15. Bxf5 {[%emt 0:04:47]} gxf5 {[%emt 0:00:07]} 16. e6 {[%emt 0:00:01]} Na6 {[%emt 0:00:15]} 17. Nh4 {[%emt 0:00:43]} Qe8 {[%emt 0:00:43]} 18. Nxf5 {[%emt 0:00:12]} Kh8 {[%emt 0:00:12]} 19. Bf4 {[%emt 0:00:47]} Rg8 {[%emt 0:00:10]} 20. Qe2 {[%emt 0:01:00]} Nb4 {[%emt 0:01:37]} 21. a3 {[%emt 0:00:01]} Bf8 {[%emt 0:00:06]} 22. Bg3 {[%emt 0:01:05]} Nd5 {[%emt 0:00:11]} 23. Nxd5 {[%emt 0:00:06]} Bxd5 {[%emt 0:00:01]} 24. Rad1 {[%emt 0:01:02]} Qc6 {[%emt 0:00:08]} 25. Nh4 {[%emt 0:00:22]} Qb7 {[%emt 0:00:25]} 26. Qd2 {[%emt 0:00:24]} Bc6 {[%emt 0:00:03]} 27. Rc1 {[%emt 0:00:08]} Qb6 {[%emt 0:00:36]} 28. Qc3 {[%emt 0:00:02]} Be8 {[%emt 0:00:11]} 29. Qxc5 {[%emt 0:00:27]} Qxb2 {[%emt 0:00:02]} 30. Qd5 {[%emt 0:00:11]} Rb8 {[%emt 0:00:47]} 31. Bxb8 {[%emt 0:00:08]} Qxb8 {[%emt 0:00:02]} 32. Rc4 {[%emt 0:00:27]} Bh6 {[%emt 0:00:12]} 33. Nf5 {[%emt 0:00:24]} Bf8 {[%emt 0:00:03]} 34. Rec1 {[%emt 0:00:07]} Qb3 {[%emt 0:00:08]} 35. Kh2 {[%emt 0:00:39]} Qxa3 {[%emt 0:00:09]} 36. Rc8 {[%emt 0:00:04]} Bg6 {[%emt 0:00:03]} 37. Ng3 {[%emt 0:00:14]} a5 {[%emt 0:00:18]} 38. Qa8 {[%emt 0:00:09]} Kg7 {[%emt 0:00:06]} 39. Rd1 {[%emt 0:00:02]} h5 {[%emt 0:00:25]} 40. Rdd8 {[%emt 0:00:11]} 1-0

[Event "Hungarian Rapid-ch 2022"]
[Site "Ajka"]
[Date "2022.07.16"]
[Round "6.12"]
[White "Varga, Zoltan"]
[Black "Kiss, Pal"]
[Result "1/2-1/2"]
[ECO "B10"]
[WhiteElo "2401"]
[BlackElo "2243"]
[Annotator "ChessBase"]
[PlyCount "56"]
[EventDate "2022.07.15"]
[EventType "swiss"]
[EventCountry "HUN"]
[SourceTitle "playchess.com"]
[Source "ChessBase"]
[SourceQuality "1"]
[TimeControl "900+10"]

1. c4 {[%emt 0:00:16]} c6 {[%emt 0:00:21]} 2. e4 {[%emt 0:00:08]} d5 {[%emt 0:00:12]} 3. cxd5 {[%emt 0:00:02]} cxd5 {[%emt 0:00:02]} 4. exd5 {[%emt 0:00:00]} Nf6 {[%emt 0:00:24]} 5. Bb5+ {[%emt 0:00:06]} Nbd7 {[%emt 0:00:12]} 6. Nc3 {[%emt 0:00:01]} a6 {[%emt 0:00:11]} 7. Be2 {[%emt 0:00:02]} Nb6 {[%emt 0:00:12]} 8. d4 {[%emt 0:00:02]} Nbxd5 {[%emt 0:00:12]} 9. Nf3 {[%emt 0:00:01]} e6 {[%emt 0:00:39]} 10. O-O {[%emt 0:00:02]} Be7 {[%emt 0:00:35]} 11. Ne5 {[%emt 0:00:02]} O-O {[%emt 0:00:03]} 12. Bf3 {[%emt 0:00:00]} Bd7 {[%emt 0:00:57]} 13. Qb3 {[%emt 0:00:05]} Bc6 {[%emt 0:00:16]} 14. Nxc6 {[%emt 0:00:02]} bxc6 {[%emt 0:00:00]} 15. a3 {[%emt 0:00:23]} h6 {[%emt 0:01:05]} 16. Bd2 {[%emt 0:00:10]} Rb8 {[%emt 0:00:31]} 17. Qc2 {[%emt 0:00:53]} Nxc3 {[%emt 0:00:46]} 18. bxc3 {[%emt 0:03:46]} c5 {[%emt 0:00:41]} 19. Qa4 {[%emt 0:00:13]} cxd4 {[%emt 0:00:41]} 20. Qxa6 {[%emt 0:00:08]} dxc3 {[%emt 0:00:44]} 21. Bxc3 {[%emt 0:00:01]} Nd5 {[%emt 0:00:33]} 22. Rfd1 {[%emt 0:01:40]} Ra8 {[%emt 0:01:37]} 23. Qb7 {[%emt 0:00:03]} Rxa3 {[%emt 0:02:06]} 24. Bxg7 {[%emt 0:01:12]} Kxg7 {[%emt 0:00:46]} 25. Qb2+ {[%emt 0:00:02]} Bf6 {[%emt 0:00:53]} 26. Qxa3 {[%emt 0:00:02]} Bxa1 {[%emt 0:00:01]} 27. Qxa1+ {[%emt 0:06:55]} Qf6 {[%emt 0:00:03]} 28. Bxd5 {[%emt 0:00:01]} Qxa1 {[%emt 0:00:03]} 1/2-1/2

[Event "Hungarian Rapid-ch 2022"]
[Site "Ajka"]
[Date "2022.07.16"]
[Round "6.13"]
[White "Benedek, Istvan"]
[Black "Kantor, Gergely"]
[Result "1-0"]
[ECO "B00"]
[WhiteElo "2059"]
[BlackElo "2582"]
[Annotator "ChessBase"]
[PlyCount "101"]
[EventDate "2022.07.15"]
[EventType "swiss"]
[EventCountry "HUN"]
[SourceTitle "playchess.com"]
[Source "ChessBase"]
[SourceQuality "1"]
[TimeControl "900+10"]

1. e4 {[%emt 0:00:13]} Nc6 {[%emt 0:00:11]} 2. d4 {[%emt 0:00:05]} d6 {[%emt 0:00:06]} 3. Nc3 {[%emt 0:00:12]} g6 {[%emt 0:00:02]} 4. Be3 {[%emt 0:00:22]} Bg7 {[%emt 0:00:01]} 5. Qd2 {[%emt 0:00:07]} a6 {[%emt 0:00:01]} 6. Nf3 {[%emt 0:00:12]} b5 {[%emt 0:00:11]} 7. Bd3 {[%emt 0:00:10]} Bg4 {[%emt 0:00:09]} 8. Ne2 {[%emt 0:00:56]} e5 {[%emt 0:00:20]} 9. d5 {[%emt 0:00:45]} Nce7 {[%emt 0:00:05]} 10. a4 {[%emt 0:00:11]} bxa4 {[%emt 0:00:34]} 11. Rxa4 {[%emt 0:00:08]} Nf6 {[%emt 0:00:02]} 12. Ng3 {[%emt 0:00:34]} O-O {[%emt 0:00:28]} 13. Bxa6 {[%emt 0:00:54]} Bd7 {[%emt 0:00:20]} 14. Ra3 {[%emt 0:00:09]} Ng4 {[%emt 0:00:09]} 15. O-O {[%emt 0:00:34]} f5 {[%emt 0:00:09]} 16. exf5 {[%emt 0:01:09]} gxf5 {[%emt 0:00:04]} 17. Bg5 {[%emt 0:00:13]} h6 {[%emt 0:00:03]} 18. Bh4 {[%emt 0:00:06]} Qe8 {[%emt 0:00:39]} 19. Bxe7 {[%emt 0:00:35]} Qxe7 {[%emt 0:00:02]} 20. Nh5 {[%emt 0:00:07]} e4 {[%emt 0:01:25]} 21. Nxg7 {[%emt 0:01:30]} exf3 {[%emt 0:00:13]} 22. Ne6 {[%emt 0:00:28]} Bxe6 {[%emt 0:04:15]} 23. dxe6 {[%emt 0:00:02]} f4 {[%emt 0:00:15]} 24. Bb7 {[%emt 0:03:20]} Rxa3 {[%emt 0:01:21]} 25. bxa3 {[%emt 0:00:01]} fxg2 {[%emt 0:02:25]} 26. Kxg2 {[%emt 0:00:08]} Qg5 {[%emt 0:00:17]} 27. Kh1 {[%emt 0:01:03]} Qb5 {[%emt 0:00:30]} 28. Bg2 {[%emt 0:00:02]} f3 {[%emt 0:00:14]} 29. Bh3 {[%emt 0:00:16]} Qe2 {[%emt 0:03:55]} 30. Qd4 {[%emt 0:01:34]} h5 {[%emt 0:00:06]} 31. Rg1 {[%emt 0:00:24]} Qxe6 {[%emt 0:00:03]} 32. Bxg4 {[%emt 0:00:08]} hxg4 {[%emt 0:00:00]} 33. Rxg4+ {[%emt 0:00:30]} Kf7 {[%emt 0:00:02]} 34. Rf4+ {[%emt 0:00:38]} Kg8 {[%emt 0:00:03]} 35. Rxf8+ {[%emt 0:00:10]} Kxf8 {[%emt 0:00:01]} 36. Qf4+ {[%emt 0:00:01]} Kg7 {[%emt 0:00:20]} 37. Qxf3 {[%emt 0:00:16]} Qc4 {[%emt 0:00:02]} 38. Qd3 {[%emt 0:00:30]} Qc5 {[%emt 0:00:04]} 39. Kg2 {[%emt 0:00:06]} Qc6+ {[%emt 0:00:04]} 40. Kg3 {[%emt 0:00:09]} Qc5 {[%emt 0:00:04]} 41. h4 {[%emt 0:00:26]} Qe5+ {[%emt 0:00:00]} 42. Kg4 {[%emt 0:00:11]} c5 {[%emt 0:00:43]} 43. Qe3 {[%emt 0:00:14]} Qh2 {[%emt 0:00:17]} 44. Qg3 {[%emt 0:00:24]} Qh1 {[%emt 0:00:04]} 45. Kf5+ {[%emt 0:01:25]} Kh7 {[%emt 0:00:27]} 46. Kf6 {[%emt 0:00:12]} Qb7 {[%emt 0:00:54]} 47. Qg6+ {[%emt 0:00:07]} Kh8 {[%emt 0:00:01]} 48. Qe8+ {[%emt 0:00:32]} Kh7 {[%emt 0:00:02]} 49. Qe7+ {[%emt 0:00:02]} Qxe7+ {[%emt 0:00:03]} 50. Kxe7 {[%emt 0:00:01]} d5 {[%emt 0:00:01]} 51. Kd6 {[%emt 0:00:03]} 1-0

[Event "Hungarian Rapid-ch 2022"]
[Site "Ajka"]
[Date "2022.07.16"]
[Round "6.14"]
[White "Aczel, Gergely"]
[Black "Szamoskozi, Gabor"]
[Result "1-0"]
[ECO "E81"]
[WhiteElo "2499"]
[BlackElo "2243"]
[Annotator "ChessBase"]
[PlyCount "65"]
[EventDate "2022.07.15"]
[EventType "swiss"]
[EventCountry "HUN"]
[SourceTitle "playchess.com"]
[Source "ChessBase"]
[SourceQuality "1"]
[TimeControl "900+10"]

1. d4 {[%emt 0:00:11]} Nf6 {[%emt 0:00:15]} 2. c4 {[%emt 0:00:01]} g6 {[%emt 0:00:08]} 3. f3 {[%emt 0:00:02]} Bg7 {[%emt 0:00:52]} 4. e4 {[%emt 0:00:01]} d6 {[%emt 0:00:06]} 5. Nc3 {[%emt 0:00:02]} O-O {[%emt 0:00:07]} 6. Bg5 {[%emt 0:00:02]} c5 {[%emt 0:00:44]} 7. d5 {[%emt 0:00:01]} e6 {[%emt 0:01:07]} 8. Qd2 {[%emt 0:00:01]} exd5 {[%emt 0:00:29]} 9. cxd5 {[%emt 0:00:02]} Re8 {[%emt 0:00:49]} 10. Be2 {[%emt 0:00:01]} a6 {[%emt 0:00:52]} 11. a4 {[%emt 0:00:03]} Nbd7 {[%emt 0:00:27]} 12. Nh3 {[%emt 0:00:01]} Rb8 {[%emt 0:01:03]} 13. Nf2 {[%emt 0:00:14]} Qc7 {[%emt 0:00:16]} 14. O-O {[%emt 0:00:07]} c4 {[%emt 0:01:33]} 15. a5 {[%emt 0:00:27]} Nc5 {[%emt 0:00:06]} 16. Bxc4 {[%emt 0:00:57]} b5 {[%emt 0:03:31]} 17. axb6 {[%emt 0:00:04]} Qxb6 {[%emt 0:00:04]} 18. Ra2 {[%emt 0:02:49]} Nb3 {[%emt 0:00:28]} 19. Qd1 {[%emt 0:00:44]} Nd7 {[%emt 0:00:26]} 20. Kh1 {[%emt 0:01:30]} Ne5 {[%emt 0:00:22]} 21. Be2 {[%emt 0:00:12]} h6 {[%emt 0:00:27]} 22. Bh4 {[%emt 0:00:22]} Qe3 {[%emt 0:01:16]} 23. Re1 {[%emt 0:03:17]} Qb6 {[%emt 0:01:05]} 24. Bg3 {[%emt 0:01:16]} Nd4 {[%emt 0:00:39]} 25. Bf1 {[%emt 0:00:56]} g5 {[%emt 0:00:02]} 26. Nd3 {[%emt 0:00:35]} Ng6 {[%emt 0:00:33]} 27. Bf2 {[%emt 0:00:25]} Qb3 {[%emt 0:00:21]} 28. Nc1 {[%emt 0:01:21]} Qxd1 {[%emt 0:01:11]} 29. Rxd1 {[%emt 0:00:02]} Nc2 {[%emt 0:00:13]} 30. Na4 {[%emt 0:01:01]} Ne5 {[%emt 0:00:23]} 31. Nb6 {[%emt 0:00:43]} Bd7 {[%emt 0:00:13]} 32. Rxa6 {[%emt 0:00:14]} Nb4 {[%emt 0:00:09]} 33. Ra7 {[%emt 0:00:08]} 1-0

[Event "Hungarian Rapid-ch 2022"]
[Site "Ajka"]
[Date "2022.07.16"]
[Round "6.15"]
[White "Bagi, Mate"]
[Black "Pogany, Zsombor"]
[Result "1-0"]
[ECO "B10"]
[WhiteElo "2460"]
[BlackElo "2178"]
[Annotator "ChessBase"]
[PlyCount "63"]
[EventDate "2022.07.15"]
[EventType "swiss"]
[EventCountry "HUN"]
[SourceTitle "playchess.com"]
[Source "ChessBase"]
[SourceQuality "1"]
[TimeControl "900+10"]

1. e4 {[%emt 0:00:13]} c6 {[%emt 0:00:22]} 2. Nf3 {[%emt 0:00:06]} d5 {[%emt 0:00:02]} 3. Nc3 {[%emt 0:00:02]} dxe4 {[%emt 0:00:11]} 4. Nxe4 {[%emt 0:00:02]} Nf6 {[%emt 0:00:02]} 5. Qe2 {[%emt 0:00:10]} Nxe4 {[%emt 0:00:07]} 6. Qxe4 {[%emt 0:00:03]} Nd7 {[%emt 0:00:01]} 7. Bc4 {[%emt 0:00:11]} Nf6 {[%emt 0:00:04]} 8. Ne5 {[%emt 0:00:07]} e6 {[%emt 0:00:05]} 9. Qe2 {[%emt 0:00:06]} b5 {[%emt 0:00:44]} 10. Bb3 {[%emt 0:01:15]} Qc7 {[%emt 0:03:06]} 11. O-O {[%emt 0:00:41]} Bd6 {[%emt 0:00:09]} 12. d4 {[%emt 0:00:08]} Bb7 {[%emt 0:00:18]} 13. Bf4 {[%emt 0:01:08]} O-O {[%emt 0:01:07]} 14. Rad1 {[%emt 0:00:22]} a6 {[%emt 0:00:52]} 15. Bg3 {[%emt 0:00:36]} Rfe8 {[%emt 0:01:15]} 16. c3 {[%emt 0:00:53]} Rad8 {[%emt 0:00:14]} 17. Nd3 {[%emt 0:02:49]} Bxg3 {[%emt 0:00:30]} 18. hxg3 {[%emt 0:00:08]} Nd7 {[%emt 0:00:25]} 19. Qh5 {[%emt 0:00:14]} Nf6 {[%emt 0:04:32]} 20. Qh4 {[%emt 0:00:50]} Nd7 {[%emt 0:00:39]} 21. Bc2 {[%emt 0:00:07]} h6 {[%emt 0:00:38]} 22. b4 {[%emt 0:00:36]} e5 {[%emt 0:01:02]} 23. dxe5 {[%emt 0:00:36]} c5 {[%emt 0:01:01]} 24. e6 {[%emt 0:01:20]} fxe6 {[%emt 0:00:32]} 25. bxc5 {[%emt 0:02:19]} Nxc5 {[%emt 0:00:28]} 26. Qh5 {[%emt 0:01:16]} Nxd3 {[%emt 0:00:51]} 27. Rxd3 {[%emt 0:00:02]} Qc6 {[%emt 0:00:09]} 28. f3 {[%emt 0:00:25]} Rxd3 {[%emt 0:00:08]} 29. Bxd3 {[%emt 0:00:03]} Rd8 {[%emt 0:00:08]} 30. Qg6 {[%emt 0:00:29]} Qe8 {[%emt 0:00:16]} 31. Qh7+ {[%emt 0:00:08]} Kf8 {[%emt 0:00:01]} 32. Bg6 {[%emt 0:00:12]} 1-0

[Event "Hungarian Rapid-ch 2022"]
[Site "Ajka"]
[Date "2022.07.16"]
[Round "6.16"]
[White "Margl, Roland"]
[Black "Jakab, Attila"]
[Result "0-1"]
[ECO "E06"]
[WhiteElo "2312"]
[BlackElo "2311"]
[Annotator "ChessBase"]
[PlyCount "72"]
[EventDate "2022.07.15"]
[EventType "swiss"]
[EventCountry "HUN"]
[SourceTitle "playchess.com"]
[Source "ChessBase"]
[SourceQuality "1"]
[TimeControl "900+10"]

1. Nf3 {[%emt 0:00:12]} d5 {[%emt 0:00:12]} 2. d4 {[%emt 0:00:01]} Nf6 {[%emt 0:00:03]} 3. c4 {[%emt 0:00:01]} e6 {[%emt 0:00:07]} 4. g3 {[%emt 0:00:12]} Be7 {[%emt 0:00:03]} 5. Bg2 {[%emt 0:00:02]} O-O {[%emt 0:00:03]} 6. O-O {[%emt 0:00:02]} dxc4 {[%emt 0:00:02]} 7. Qc2 {[%emt 0:00:10]} a6 {[%emt 0:00:06]} 8. a4 {[%emt 0:00:01]} Bd7 {[%emt 0:00:19]} 9. Rd1 {[%emt 0:00:02]} Bc6 {[%emt 0:00:05]} 10. Nc3 {[%emt 0:00:02]} Bb4 {[%emt 0:02:44]} 11. Bg5 {[%emt 0:00:13]} h6 {[%emt 0:00:27]} 12. Bxf6 {[%emt 0:00:16]} Qxf6 {[%emt 0:00:02]} 13. Ne5 {[%emt 0:00:48]} Bxg2 {[%emt 0:00:16]} 14. Kxg2 {[%emt 0:00:02]} Rd8 {[%emt 0:01:19]} 15. Qe4 {[%emt 0:01:49]} c6 {[%emt 0:00:12]} 16. Nxc4 {[%emt 0:00:16]} Nd7 {[%emt 0:00:08]} 17. Rac1 {[%emt 0:02:38]} Qe7 {[%emt 0:00:12]} 18. e3 {[%emt 0:02:07]} Rac8 {[%emt 0:00:11]} 19. Qf3 {[%emt 0:02:45]} b5 {[%emt 0:00:22]} 20. Nd2 {[%emt 0:01:58]} Nb6 {[%emt 0:00:17]} 21. axb5 {[%emt 0:00:21]} cxb5 {[%emt 0:00:06]} 22. Na2 {[%emt 0:00:30]} Na4 {[%emt 0:00:31]} 23. Rxc8 {[%emt 0:01:04]} Rxc8 {[%emt 0:00:02]} 24. Nxb4 {[%emt 0:00:01]} Qxb4 {[%emt 0:00:08]} 25. Qb7 {[%emt 0:00:02]} Rc2 {[%emt 0:00:23]} 26. b3 {[%emt 0:02:30]} Nb2 {[%emt 0:00:34]} 27. Qa8+ {[%emt 0:00:25]} Qf8 {[%emt 0:00:03]} 28. Qe4 {[%emt 0:00:02]} Qc8 {[%emt 0:00:13]} 29. Nc4 {[%emt 0:00:31]} Rxf2+ {[%emt 0:00:32]} 30. Kxf2 {[%emt 0:00:01]} Nxd1+ {[%emt 0:00:02]} 31. Ke1 {[%emt 0:00:01]} bxc4 {[%emt 0:00:02]} 32. Kxd1 {[%emt 0:00:06]} cxb3 {[%emt 0:00:02]} 33. Qd3 {[%emt 0:00:05]} Qb7 {[%emt 0:00:05]} 34. Kc1 {[%emt 0:00:05]} a5 {[%emt 0:00:14]} 35. e4 {[%emt 0:00:04]} a4 {[%emt 0:00:03]} 36. Kb2 {[%emt 0:00:04]} Qb4 {[%emt 0:00:07]} 0-1

[Event "Hungarian Rapid-ch 2022"]
[Site "Ajka"]
[Date "2022.07.16"]
[Round "6.17"]
[White "Lizak, Peter"]
[Black "Balint, Vilmos"]
[Result "0-1"]
[ECO "A10"]
[WhiteElo "2400"]
[BlackElo "2283"]
[Annotator "ChessBase"]
[PlyCount "72"]
[EventDate "2022.07.15"]
[EventType "swiss"]
[EventCountry "HUN"]
[SourceTitle "playchess.com"]
[Source "ChessBase"]
[SourceQuality "1"]
[TimeControl "900+10"]

1. c4 {[%emt 0:00:17]} f5 {[%emt 0:00:24]} 2. g3 {[%emt 0:00:04]} Nf6 {[%emt 0:00:01]} 3. Bg2 {[%emt 0:00:01]} g6 {[%emt 0:00:01]} 4. Nc3 {[%emt 0:00:11]} Bg7 {[%emt 0:00:03]} 5. d3 {[%emt 0:00:20]} O-O {[%emt 0:00:33]} 6. e4 {[%emt 0:00:03]} d6 {[%emt 0:00:22]} 7. Nge2 {[%emt 0:00:03]} Nc6 {[%emt 0:00:17]} 8. O-O {[%emt 0:00:06]} Bd7 {[%emt 0:02:01]} 9. h3 {[%emt 0:01:54]} Qc8 {[%emt 0:01:40]} 10. Kh2 {[%emt 0:00:11]} fxe4 {[%emt 0:00:41]} 11. dxe4 {[%emt 0:00:02]} e5 {[%emt 0:00:29]} 12. Be3 {[%emt 0:00:23]} b6 {[%emt 0:00:24]} 13. Nd5 {[%emt 0:00:07]} Nh5 {[%emt 0:00:23]} 14. Qd2 {[%emt 0:00:31]} Kh8 {[%emt 0:00:29]} 15. Rac1 {[%emt 0:00:20]} a5 {[%emt 0:00:06]} 16. Nec3 {[%emt 0:00:27]} Rf7 {[%emt 0:01:05]} 17. Nb5 {[%emt 0:00:18]} Be6 {[%emt 0:00:41]} 18. Nbxc7 {[%emt 0:05:08]} Rxc7 {[%emt 0:00:05]} 19. Nxb6 {[%emt 0:00:02]} Qb7 {[%emt 0:00:17]} 20. Nxa8 {[%emt 0:00:02]} Qxa8 {[%emt 0:00:02]} 21. Qxd6 {[%emt 0:00:02]} Qc8 {[%emt 0:00:05]} 22. f4 {[%emt 0:02:13]} Nd4 {[%emt 0:00:50]} 23. fxe5 {[%emt 0:01:31]} Ne2 {[%emt 0:01:44]} 24. Rcd1 {[%emt 0:00:45]} Nhxg3 {[%emt 0:00:51]} 25. Qd8+ {[%emt 0:00:39]} Bg8 {[%emt 0:00:01]} 26. Qxc8 {[%emt 0:00:10]} Rxc8 {[%emt 0:00:21]} 27. Rf6 {[%emt 0:00:49]} Nh5 {[%emt 0:01:28]} 28. Bf3 {[%emt 0:00:22]} Neg3 {[%emt 0:00:08]} 29. Bg5 {[%emt 0:00:26]} Rxc4 {[%emt 0:00:34]} 30. Rd8 {[%emt 0:00:45]} Nxe4 {[%emt 0:00:29]} 31. Bxe4 {[%emt 0:00:51]} Rxe4 {[%emt 0:00:01]} 32. Re6 {[%emt 0:00:11]} h6 {[%emt 0:00:59]} 33. Bxh6 {[%emt 0:01:03]} Re2+ {[%emt 0:00:20]} 34. Kg1 {[%emt 0:00:05]} Bxh6 {[%emt 0:00:04]} 35. Ree8 {[%emt 0:00:03]} Be3+ {[%emt 0:00:05]} 36. Kf1 {[%emt 0:00:03]} Ng3# {[%emt 0:00:02]} 0-1

[Event "Hungarian Rapid-ch 2022"]
[Site "Ajka"]
[Date "2022.07.16"]
[Round "6.18"]
[White "Giang, Tran Nam"]
[Black "Papp, Levente"]
[Result "0-1"]
[ECO "C15"]
[WhiteElo "2144"]
[BlackElo "2394"]
[Annotator "ChessBase"]
[PlyCount "104"]
[EventDate "2022.07.15"]
[EventType "swiss"]
[EventCountry "HUN"]
[SourceTitle "playchess.com"]
[Source "ChessBase"]
[SourceQuality "1"]
[TimeControl "900+10"]

1. e4 {[%emt 0:00:12]} e6 {[%emt 0:00:12]} 2. d4 {[%emt 0:00:01]} d5 {[%emt 0:00:01]} 3. Nc3 {[%emt 0:00:02]} Bb4 {[%emt 0:00:01]} 4. Nge2 {[%emt 0:00:03]} Ne7 {[%emt 0:00:14]} 5. a3 {[%emt 0:00:10]} Ba5 {[%emt 0:00:01]} 6. b4 {[%emt 0:00:14]} Bb6 {[%emt 0:00:02]} 7. Be3 {[%emt 0:00:03]} O-O {[%emt 0:00:21]} 8. Ng3 {[%emt 0:00:18]} dxe4 {[%emt 0:03:53]} 9. Ncxe4 {[%emt 0:00:30]} f5 {[%emt 0:00:23]} 10. c4 {[%emt 0:02:49]} c6 {[%emt 0:00:28]} 11. c5 {[%emt 0:00:38]} Bc7 {[%emt 0:00:01]} 12. Ng5 {[%emt 0:00:18]} h6 {[%emt 0:00:48]} 13. Bc4 {[%emt 0:02:01]} Nd5 {[%emt 0:00:40]} 14. Nf3 {[%emt 0:02:01]} f4 {[%emt 0:00:09]} 15. Bxf4 {[%emt 0:00:07]} Rxf4 {[%emt 0:01:45]} 16. Qe2 {[%emt 0:00:33]} Nd7 {[%emt 0:01:05]} 17. O-O {[%emt 0:00:58]} N7f6 {[%emt 0:00:06]} 18. Rfe1 {[%emt 0:00:29]} Qe8 {[%emt 0:00:30]} 19. Qd2 {[%emt 0:01:01]} Bd7 {[%emt 0:01:33]} 20. Ne2 {[%emt 0:00:25]} Rxf3 {[%emt 0:02:38]} 21. gxf3 {[%emt 0:00:02]} Qh5 {[%emt 0:00:33]} 22. Ng3 {[%emt 0:00:33]} Qxf3 {[%emt 0:00:02]} 23. Be2 {[%emt 0:00:25]} Qf4 {[%emt 0:00:10]} 24. Qxf4 {[%emt 0:00:02]} Bxf4 {[%emt 0:00:06]} 25. Bc4 {[%emt 0:00:18]} a5 {[%emt 0:00:25]} 26. Rab1 {[%emt 0:00:31]} axb4 {[%emt 0:00:10]} 27. axb4 {[%emt 0:00:00]} Ra4 {[%emt 0:00:42]} 28. Rb2 {[%emt 0:00:38]} Kf7 {[%emt 0:00:51]} 29. Kg2 {[%emt 0:00:19]} Bc7 {[%emt 0:00:34]} 30. Reb1 {[%emt 0:01:03]} b5 {[%emt 0:00:11]} 31. cxb6 {[%emt 0:00:32]} Bxb6 {[%emt 0:00:02]} 32. Ne2 {[%emt 0:00:06]} Ne4 {[%emt 0:00:18]} 33. Bb3 {[%emt 0:00:47]} Ra8 {[%emt 0:00:29]} 34. Rc1 {[%emt 0:00:30]} Ke7 {[%emt 0:00:15]} 35. Bc2 {[%emt 0:00:24]} Nd6 {[%emt 0:00:15]} 36. Bb1 {[%emt 0:00:21]} Nb5 {[%emt 0:00:09]} 37. Rc4 {[%emt 0:00:28]} Rf8 {[%emt 0:00:11]} 38. Be4 {[%emt 0:00:32]} Nd6 {[%emt 0:00:21]} 39. Bxd5 {[%emt 0:00:07]} exd5 {[%emt 0:00:02]} 40. Rc3 {[%emt 0:00:12]} Nb5 {[%emt 0:00:05]} 41. Rg3 {[%emt 0:00:24]} Rf7 {[%emt 0:00:21]} 42. Rd2 {[%emt 0:00:04]} Bf5 {[%emt 0:00:14]} 43. h4 {[%emt 0:00:26]} Kd6 {[%emt 0:00:34]} 44. Kg1 {[%emt 0:00:22]} Bd8 {[%emt 0:00:02]} 45. h5 {[%emt 0:00:06]} Be4 {[%emt 0:00:06]} 46. f3 {[%emt 0:00:28]} Bxf3 {[%emt 0:00:14]} 47. Rg6+ {[%emt 0:00:01]} Bf6 {[%emt 0:00:10]} 48. Ng3 {[%emt 0:00:03]} Be4 {[%emt 0:00:08]} 49. Nxe4+ {[%emt 0:00:02]} dxe4 {[%emt 0:00:01]} 50. Kg2 {[%emt 0:00:15]} Kd5 {[%emt 0:00:07]} 51. Rg3 {[%emt 0:00:04]} Ra7 {[%emt 0:00:15]} 52. Rg4 {[%emt 0:00:13]} Nxd4 {[%emt 0:00:13]} 0-1